[Event "*** Titled Tuesday Blitz"]
[Site "Chess.com"]
[Date "2018.06.05"]
[Round "8"]
[White "MateusViageiro"]
[Black "Terrordelcaribe94"]
[Result "0-1"]
[WhiteElo "2180"]
[BlackElo "2361"]
[TimeControl "180+2"]
[EndTime "14:53:06 PDT"]
[Termination "Terrordelcaribe94 won by resignation"]

1. e4 {[%clk 0:03:01.9]} 1... e6 {[%clk 0:03:00]} 2. d4 {[%clk 0:03:01.9]} 2...
d5 {[%clk 0:03:00.1]} 3. Nd2 {[%clk 0:03:03]} 3... Nf6 {[%clk 0:02:59.9]} 4. e5
{[%clk 0:03:03.7]} 4... Nfd7 {[%clk 0:03:01.1]} 5. Bd3 {[%clk 0:03:04.7]} 5...
c5 {[%clk 0:03:02.2]} 6. c3 {[%clk 0:03:05.6]} 6... Nc6 {[%clk 0:03:03.6]} 7.
Ne2 {[%clk 0:03:06.3]} 7... cxd4 {[%clk 0:03:03.9]} 8. cxd4 {[%clk 0:03:07.2]}
8... f6 {[%clk 0:03:05.3]} 9. exf6 {[%clk 0:03:06.7]} 9... Nxf6 {[%clk
0:03:07.2]} 10. O-O {[%clk 0:03:06.5]} 10... Bd6 {[%clk 0:03:07.6]} 11. Nf3
{[%clk 0:03:06.6]} 11... O-O {[%clk 0:03:04.6]} 12. a3 {[%clk 0:03:06.1]} 12...
a6 {[%clk 0:03:03.8]} 13. Re1 {[%clk 0:03:06.5]} 13... Nh5 {[%clk 0:03:03.9]}
14. Ng3 {[%clk 0:03:06.8]} 14... Nf4 {[%clk 0:03:03.8]} 15. Bc2 {[%clk
0:03:06.1]} 15... Bd7 {[%clk 0:02:58]} 16. Ne5 {[%clk 0:03:06.9]} 16... Bxe5
{[%clk 0:02:35.1]} 17. dxe5 {[%clk 0:03:07.1]} 17... Qh4 {[%clk 0:02:36.1]} 18.
Bxf4 {[%clk 0:02:27.8]} 18... Qxf4 {[%clk 0:02:34.8]} 19. Kh1 {[%clk 0:02:09.7]}
19... Qxf2 {[%clk 0:02:27.9]} 20. Rf1 {[%clk 0:02:10.4]} 20... Qc5 {[%clk
0:02:10.1]} 21. Rc1 {[%clk 0:02:03.4]} 21... Rxf1+ {[%clk 0:02:05.4]} 22. Nxf1
{[%clk 0:02:02.2]} 22... Qe7 {[%clk 0:02:02.9]} 23. Qh5 {[%clk 0:02:02.9]} 23...
g6 {[%clk 0:02:03.4]} 24. Qe2 {[%clk 0:02:01.7]} 24... Nd4 {[%clk 0:02:03.1]}
25. Qe3 {[%clk 0:01:58.9]} 25... Nxc2 {[%clk 0:01:56.4]} 26. Rxc2 {[%clk
0:02:00.8]} 26... Bc6 {[%clk 0:01:57.7]} 27. Nd2 {[%clk 0:02:00.1]} 27... Rf8
{[%clk 0:01:56.6]} 28. h3 {[%clk 0:01:57.4]} 28... Qh4 {[%clk 0:01:51.8]} 29.
Nf3 {[%clk 0:01:54.4]} 29... Qg3 {[%clk 0:01:51.4]} 30. Rd2 {[%clk 0:01:47]}
30... d4 {[%clk 0:01:49.9]} 31. Qf2 {[%clk 0:01:45.3]} 31... Rxf3 {[%clk
0:01:44.9]} 0-1

[Event "*** Titled Tuesday Blitz"]
[Site "Chess.com"]
[Date "2018.06.05"]
[Round "8"]
[White "goodtimes2020"]
[Black "ezkybel"]
[Result "1-0"]
[WhiteElo "2280"]
[BlackElo "2342"]
[TimeControl "180+2"]
[EndTime "14:53:11 PDT"]
[Termination "goodtimes2020 won by resignation"]

1. e4 {[%clk 0:03:01.9]} 1... e6 {[%clk 0:03:01.3]} 2. d4 {[%clk 0:03:01.8]}
2... d5 {[%clk 0:03:02.7]} 3. Nd2 {[%clk 0:03:02.2]} 3... Nf6 {[%clk 0:03:03.5]}
4. e5 {[%clk 0:03:03.2]} 4... Nfd7 {[%clk 0:03:05]} 5. Ngf3 {[%clk 0:03:04.9]}
5... c5 {[%clk 0:03:06.5]} 6. c3 {[%clk 0:03:06.6]} 6... Nc6 {[%clk 0:03:08]} 7.
Bd3 {[%clk 0:03:08.1]} 7... f6 {[%clk 0:03:08.9]} 8. exf6 {[%clk 0:03:06]} 8...
Nxf6 {[%clk 0:03:09.7]} 9. O-O {[%clk 0:03:07.1]} 9... cxd4 {[%clk 0:03:11.2]}
10. cxd4 {[%clk 0:03:08]} 10... Bd6 {[%clk 0:03:12.8]} 11. Nb3 {[%clk
0:03:08.2]} 11... O-O {[%clk 0:03:14.7]} 12. Bg5 {[%clk 0:03:07.8]} 12... Qc7
{[%clk 0:03:16]} 13. Bh4 {[%clk 0:03:08.1]} 13... Bd7 {[%clk 0:03:16.7]} 14. Bg3
{[%clk 0:03:09.2]} 14... Bxg3 {[%clk 0:03:17.3]} 15. hxg3 {[%clk 0:03:10.1]}
15... Be8 {[%clk 0:03:18.7]} 16. Qc2 {[%clk 0:03:07]} 16... Qb6 {[%clk
0:03:06.2]} 17. Qe2 {[%clk 0:03:00.1]} 17... Bh5 {[%clk 0:02:57.1]} 18. Qxe6+
{[%clk 0:02:52.8]} 18... Kh8 {[%clk 0:02:57.7]} 19. Ne5 {[%clk 0:02:53.8]} 19...
Rae8 {[%clk 0:02:45.7]} 20. Qd6 {[%clk 0:02:47]} 20... Nxd4 {[%clk 0:02:14.8]}
21. Qxb6 {[%clk 0:02:45.4]} 21... axb6 {[%clk 0:02:15.9]} 22. Nxd4 {[%clk
0:02:46.1]} 22... Rxe5 {[%clk 0:02:16.7]} 23. Rfe1 {[%clk 0:02:44.6]} 23... Rfe8
{[%clk 0:02:17.9]} 24. Kf1 {[%clk 0:02:45.4]} 24... Ng4 {[%clk 0:02:15.3]} 25.
Rxe5 {[%clk 0:02:42.7]} 25... Rxe5 {[%clk 0:02:15.4]} 26. f3 {[%clk 0:02:42.4]}
26... Ne3+ {[%clk 0:02:11.8]} 27. Kf2 {[%clk 0:02:43.3]} 27... Nc4 {[%clk
0:02:11.7]} 28. Rc1 {[%clk 0:02:29.3]} 28... Bf7 {[%clk 0:02:05.1]} 29. b3
{[%clk 0:02:27.9]} 29... Nd6 {[%clk 0:02:06.3]} 30. Rc7 {[%clk 0:02:26.2]} 30...
Re8 {[%clk 0:02:04.5]} 31. Rd7 {[%clk 0:02:25.3]} 31... Ne4+ {[%clk 0:01:47.4]}
32. fxe4 {[%clk 0:02:24]} 32... dxe4 {[%clk 0:01:48.8]} 33. Bc4 {[%clk
0:02:20.1]} 33... e3+ {[%clk 0:01:46]} 34. Ke2 {[%clk 0:02:20.7]} 34... Bh5+
{[%clk 0:01:47.2]} 35. Nf3 {[%clk 0:02:21.5]} 35... h6 {[%clk 0:01:46.9]} 36.
Rd3 {[%clk 0:02:22.4]} 36... Ra8 {[%clk 0:01:44.1]} 37. a4 {[%clk 0:02:22.5]}
37... b5 {[%clk 0:01:45.2]} 38. Bxb5 {[%clk 0:02:23.2]} 38... Rc8 {[%clk
0:01:45.5]} 39. Bc4 {[%clk 0:02:24.1]} 39... g5 {[%clk 0:01:44]} 40. Rxe3 {[%clk
0:02:24.9]} 40... g4 {[%clk 0:01:44.8]} 41. Nd4 {[%clk 0:02:25.2]} 41... Bg6
{[%clk 0:01:45.7]} 42. Re7 {[%clk 0:02:24.7]} 42... h5 {[%clk 0:01:46.2]} 43.
Ke3 {[%clk 0:02:25.4]} 43... Rf8 {[%clk 0:01:45.9]} 44. Rxb7 {[%clk 0:02:19.1]}
44... Re8+ {[%clk 0:01:47.2]} 45. Kf4 {[%clk 0:02:20]} 45... Rd8 {[%clk
0:01:47.9]} 46. Ne6 {[%clk 0:02:20.2]} 1-0

[Event "*** Titled Tuesday Blitz"]
[Site "Chess.com"]
[Date "2018.06.05"]
[Round "8"]
[White "orrbaverlekszarnyon"]
[Black "AsaHoffmann"]
[Result "1-0"]
[WhiteElo "2251"]
[BlackElo "2038"]
[TimeControl "180+2"]
[EndTime "14:53:27 PDT"]
[Termination "orrbaverlekszarnyon won by resignation"]

1. e4 {[%clk 0:03:01.9]} 1... d6 {[%clk 0:03:00]} 2. d4 {[%clk 0:03:01.7]} 2...
Nf6 {[%clk 0:02:55.7]} 3. Nc3 {[%clk 0:03:02.3]} 3... c6 {[%clk 0:02:56.2]} 4.
Bg5 {[%clk 0:02:59.8]} 4... Nbd7 {[%clk 0:02:56]} 5. Qd2 {[%clk 0:02:57.6]} 5...
b5 {[%clk 0:02:56.5]} 6. f3 {[%clk 0:02:56.7]} 6... Qa5 {[%clk 0:02:56.1]} 7.
Bd3 {[%clk 0:02:47.7]} 7... e5 {[%clk 0:02:55.5]} 8. Nge2 {[%clk 0:02:44.1]}
8... Be7 {[%clk 0:02:51.2]} 9. Bxf6 {[%clk 0:02:43.8]} 9... Bxf6 {[%clk
0:02:51]} 10. d5 {[%clk 0:02:45.2]} 10... cxd5 {[%clk 0:02:48.6]} 11. Nxd5
{[%clk 0:02:41.6]} 11... Qxd2+ {[%clk 0:02:48.7]} 12. Kxd2 {[%clk 0:02:43.5]}
12... O-O {[%clk 0:02:38.5]} 13. Bxb5 {[%clk 0:02:43]} 13... Nc5 {[%clk
0:02:37.6]} 14. Nxf6+ {[%clk 0:02:36.4]} 14... gxf6 {[%clk 0:02:37.6]} 15. b3
{[%clk 0:02:30.4]} 15... Be6 {[%clk 0:02:37.4]} 16. Nc3 {[%clk 0:02:29.5]} 16...
Rfd8 {[%clk 0:02:34.7]} 17. Nd5 {[%clk 0:02:23.7]} 17... Bxd5 {[%clk 0:02:34.6]}
18. exd5 {[%clk 0:02:25.6]} 18... f5 {[%clk 0:02:32.5]} 19. Be2 {[%clk
0:02:24.5]} 19... a5 {[%clk 0:02:30.1]} 20. Bb5 {[%clk 0:02:16.4]} 20... Rab8
{[%clk 0:02:29]} 21. c4 {[%clk 0:02:16.5]} 21... Kg7 {[%clk 0:02:24.4]} 22. Kc3
{[%clk 0:02:16.6]} 22... Kf6 {[%clk 0:02:24.8]} 23. a3 {[%clk 0:02:16.7]} 23...
f4 {[%clk 0:02:24.9]} 24. b4 {[%clk 0:02:16]} 24... Nb7 {[%clk 0:02:25.5]} 25.
Rab1 {[%clk 0:02:05.6]} 25... Rdc8 {[%clk 0:02:25.8]} 26. Ba6 {[%clk 0:02:03.1]}
26... Rc7 {[%clk 0:02:22.1]} 27. Bxb7 {[%clk 0:02:03.6]} 27... Rcxb7 {[%clk
0:02:20.1]} 28. b5 {[%clk 0:02:02.2]} 28... Rb6 {[%clk 0:02:16.8]} 29. a4 {[%clk
0:01:59.6]} 29... Rc8 {[%clk 0:02:15.1]} 30. Kd3 {[%clk 0:01:59.8]} 30... Kg5
{[%clk 0:02:14.5]} 31. h4+ {[%clk 0:01:52.4]} 31... Kf6 {[%clk 0:02:11.1]} 32.
Rbc1 {[%clk 0:01:52.9]} 32... Rg8 {[%clk 0:02:07.3]} 33. Rhg1 {[%clk 0:01:50.9]}
33... Ke7 {[%clk 0:02:07.7]} 34. c5 {[%clk 0:01:51.2]} 34... dxc5 {[%clk
0:02:08.2]} 35. Rxc5 {[%clk 0:01:52.7]} 35... f5 {[%clk 0:02:07.5]} 36. Rc6
{[%clk 0:01:45.7]} 36... Rb7 {[%clk 0:02:06]} 37. Re6+ {[%clk 0:01:38.9]} 37...
Kd7 {[%clk 0:02:05.9]} 38. Rxe5 {[%clk 0:01:39.7]} 38... Rf8 {[%clk 0:02:04.9]}
39. Rc1 {[%clk 0:01:36.5]} 39... Kd6 {[%clk 0:02:04.3]} 40. Kd4 {[%clk
0:01:31.4]} 40... Rb6 {[%clk 0:02:04.1]} 41. Re6+ {[%clk 0:01:29.8]} 41... Kd7
{[%clk 0:02:01.2]} 42. Rxb6 {[%clk 0:01:30.2]} 1-0

[Event "*** Titled Tuesday Blitz"]
[Site "Chess.com"]
[Date "2018.06.05"]
[Round "8"]
[White "littleplotkin"]
[Black "NMJeevanK"]
[Result "1-0"]
[WhiteElo "2460"]
[BlackElo "2321"]
[TimeControl "180+2"]
[EndTime "14:53:30 PDT"]
[Termination "littleplotkin won by resignation"]

1. e4 {[%clk 0:03:00.4]} 1... e5 {[%clk 0:03:01]} 2. Nf3 {[%clk 0:03:00.3]} 2...
Nc6 {[%clk 0:03:02.6]} 3. d4 {[%clk 0:02:58.2]} 3... exd4 {[%clk 0:03:02.9]} 4.
Nxd4 {[%clk 0:02:59.4]} 4... Bc5 {[%clk 0:03:03.3]} 5. Nxc6 {[%clk 0:02:59.5]}
5... Qf6 {[%clk 0:03:04.4]} 6. f4 {[%clk 0:03:00.1]} 6... dxc6 {[%clk
0:03:02.7]} 7. Nc3 {[%clk 0:02:59.7]} 7... Ne7 {[%clk 0:03:02.2]} 8. Bd3 {[%clk
0:02:56.1]} 8... h5 {[%clk 0:02:52.4]} 9. Qf3 {[%clk 0:02:50.7]} 9... Bg4 {[%clk
0:02:47.5]} 10. Qg3 {[%clk 0:02:51.6]} 10... O-O-O {[%clk 0:02:40.8]} 11. Be3
{[%clk 0:02:47]} 11... Bb4 {[%clk 0:02:27]} 12. O-O {[%clk 0:02:37.2]} 12... Kb8
{[%clk 0:02:21.1]} 13. a3 {[%clk 0:02:35.5]} 13... Bxc3 {[%clk 0:02:20.1]} 14.
bxc3 {[%clk 0:02:35.4]} 14... Qxc3 {[%clk 0:02:22]} 15. Rab1 {[%clk 0:02:28.8]}
15... b6 {[%clk 0:02:19]} 16. a4 {[%clk 0:02:19.4]} 16... Qa5 {[%clk 0:02:09.2]}
17. Qf2 {[%clk 0:02:10.1]} 17... f5 {[%clk 0:02:05.3]} 18. Bd2 {[%clk
0:02:09.2]} 18... Qxa4 {[%clk 0:01:58.3]} 19. Ra1 {[%clk 0:02:07.6]} 19... Qd4
{[%clk 0:01:58.5]} 20. Be3 {[%clk 0:02:08.6]} 20... Qc3 {[%clk 0:01:55.1]} 21.
e5 {[%clk 0:02:01.7]} 21... h4 {[%clk 0:01:46.4]} 22. h3 {[%clk 0:02:01.7]}
22... Bh5 {[%clk 0:01:46.7]} 23. Ra6 {[%clk 0:01:54.3]} 23... Kb7 {[%clk
0:01:26.3]} 24. Rfa1 {[%clk 0:01:52.5]} 24... Ra8 {[%clk 0:01:27.6]} 25. Bd4
{[%clk 0:01:41.6]} 25... Qb4 {[%clk 0:01:15.2]} 26. R6a4 {[%clk 0:01:40.6]}
26... Qxa4 {[%clk 0:01:15.7]} 27. Rxa4 {[%clk 0:01:41.5]} 27... c5 {[%clk
0:01:16.8]} 28. Bxc5 {[%clk 0:01:41]} 28... bxc5 {[%clk 0:01:18.1]} 29. Qxc5
{[%clk 0:01:42.5]} 29... Nc8 {[%clk 0:01:05.1]} 30. Ba6+ {[%clk 0:01:41.6]}
30... Kb8 {[%clk 0:01:05.1]} 31. Qc6 {[%clk 0:01:42.9]} 31... Bf3 {[%clk
0:00:59]} 32. gxf3 {[%clk 0:01:41.6]} 1-0

[Event "*** Titled Tuesday Blitz"]
[Site "Chess.com"]
[Date "2018.06.05"]
[Round "8"]
[White "VitaliyBernadskiy"]
[Black "saraswathii"]
[Result "1-0"]
[WhiteElo "2650"]
[BlackElo "2303"]
[TimeControl "180+2"]
[EndTime "14:53:45 PDT"]
[Termination "VitaliyBernadskiy won by resignation"]

1. e4 {[%clk 0:03:01.9]} 1... c5 {[%clk 0:02:56.3]} 2. Nc3 {[%clk 0:03:02.5]}
2... e6 {[%clk 0:02:56.8]} 3. g3 {[%clk 0:03:01]} 3... d5 {[%clk 0:02:52.4]} 4.
exd5 {[%clk 0:02:59.1]} 4... exd5 {[%clk 0:02:53.1]} 5. Bg2 {[%clk 0:03:00.5]}
5... Nf6 {[%clk 0:02:54.2]} 6. Nge2 {[%clk 0:02:56.5]} 6... d4 {[%clk
0:02:51.3]} 7. Ne4 {[%clk 0:02:57.4]} 7... Nxe4 {[%clk 0:02:46.5]} 8. Bxe4
{[%clk 0:02:59.3]} 8... Nc6 {[%clk 0:02:46.8]} 9. O-O {[%clk 0:02:59.2]} 9...
Bd6 {[%clk 0:02:42.7]} 10. d3 {[%clk 0:02:58.7]} 10... Bh3 {[%clk 0:02:42.3]}
11. Re1 {[%clk 0:02:58.7]} 11... O-O {[%clk 0:02:43]} 12. Nf4 {[%clk 0:02:59]}
12... Bxf4 {[%clk 0:02:34.2]} 13. Bxf4 {[%clk 0:03:00.9]} 13... Qd7 {[%clk
0:02:23.3]} 14. Qh5 {[%clk 0:02:52.9]} 14... h6 {[%clk 0:02:00.3]} 15. Qxc5
{[%clk 0:02:46.4]} 15... Rac8 {[%clk 0:01:56.5]} 16. a3 {[%clk 0:02:30.1]} 16...
a6 {[%clk 0:01:48]} 17. Qd6 {[%clk 0:02:20.6]} 17... Qg4 {[%clk 0:01:42.1]} 18.
f3 {[%clk 0:02:09.5]} 18... Qh5 {[%clk 0:01:41.9]} 19. g4 {[%clk 0:02:07.4]}
19... Qb5 {[%clk 0:01:39.3]} 20. b4 {[%clk 0:01:50.4]} 20... Na7 {[%clk
0:01:21.6]} 21. a4 {[%clk 0:01:45.9]} 21... Qe8 {[%clk 0:01:11.7]} 22. Bxb7
{[%clk 0:01:42.7]} 22... Qd8 {[%clk 0:01:12.4]} 23. Qxd8 {[%clk 0:01:34.9]}
23... Rcxd8 {[%clk 0:01:12.6]} 24. Kf2 {[%clk 0:01:35.1]} 24... f5 {[%clk
0:01:05.5]} 25. g5 {[%clk 0:01:36.1]} 25... hxg5 {[%clk 0:00:56.8]} 26. Bxg5
{[%clk 0:01:38]} 26... Rd7 {[%clk 0:00:58.1]} 27. Bxa6 {[%clk 0:01:36.7]} 27...
f4 {[%clk 0:00:58.8]} 28. Bc4+ {[%clk 0:01:37.4]} 28... Kh7 {[%clk 0:00:58.8]}
29. Re7 {[%clk 0:01:34.7]} 29... Rxe7 {[%clk 0:00:53.6]} 30. Bxe7 {[%clk
0:01:36.6]} 30... Re8 {[%clk 0:00:54.5]} 31. Bc5 {[%clk 0:01:38]} 1-0

[Event "*** Titled Tuesday Blitz"]
[Site "Chess.com"]
[Date "2018.06.05"]
[Round "8"]
[White "Godzillator"]
[Black "BartoszSocko"]
[Result "0-1"]
[WhiteElo "2264"]
[BlackElo "2638"]
[TimeControl "180+2"]
[EndTime "14:54:05 PDT"]
[Termination "BartoszSocko won by resignation"]

1. d4 {[%clk 0:03:01.9]} 1... Nf6 {[%clk 0:03:00.6]} 2. c4 {[%clk 0:03:02.9]}
2... e6 {[%clk 0:03:01.9]} 3. Nc3 {[%clk 0:03:04]} 3... Bb4 {[%clk 0:03:03]} 4.
Qc2 {[%clk 0:03:05.3]} 4... O-O {[%clk 0:03:03.9]} 5. a3 {[%clk 0:03:06.2]} 5...
Bxc3+ {[%clk 0:03:05.4]} 6. Qxc3 {[%clk 0:03:07.5]} 6... d6 {[%clk 0:03:07.3]}
7. Bg5 {[%clk 0:03:05.2]} 7... Nbd7 {[%clk 0:03:08.5]} 8. e3 {[%clk 0:03:04.7]}
8... b6 {[%clk 0:03:09.8]} 9. Bd3 {[%clk 0:03:01.8]} 9... Bb7 {[%clk 0:03:10.3]}
10. f3 {[%clk 0:03:02.5]} 10... c5 {[%clk 0:03:09.6]} 11. Nh3 {[%clk 0:02:54.8]}
11... Rc8 {[%clk 0:03:09.5]} 12. Qb3 {[%clk 0:02:45]} 12... cxd4 {[%clk
0:03:01.9]} 13. exd4 {[%clk 0:02:45.3]} 13... e5 {[%clk 0:02:49.5]} 14. O-O
{[%clk 0:02:37.6]} 14... exd4 {[%clk 0:02:49.3]} 15. Bf5 {[%clk 0:02:30.3]}
15... Rc5 {[%clk 0:02:46.3]} 16. Qd3 {[%clk 0:02:21.5]} 16... Ne5 {[%clk
0:02:42.7]} 17. Qb1 {[%clk 0:02:16.1]} 17... h6 {[%clk 0:02:42.8]} 18. Bh4
{[%clk 0:02:06.9]} 18... Nxc4 {[%clk 0:02:43.3]} 19. Rd1 {[%clk 0:02:03.7]}
19... Ne3 {[%clk 0:02:43.5]} 20. Bd3 {[%clk 0:01:41.2]} 20... Rh5 {[%clk
0:02:36.9]} 21. Bxf6 {[%clk 0:01:26]} 21... Qxf6 {[%clk 0:02:38.8]} 22. Rd2
{[%clk 0:01:07]} 22... Rxh3 {[%clk 0:02:33.7]} 23. gxh3 {[%clk 0:01:05.3]} 23...
Qg5+ {[%clk 0:02:17.3]} 24. Kf2 {[%clk 0:00:58.4]} 24... Qg2+ {[%clk 0:02:18]}
25. Ke1 {[%clk 0:00:59.5]} 25... Qh1+ {[%clk 0:02:19.4]} 26. Kf2 {[%clk
0:00:54.9]} 26... Qxh2+ {[%clk 0:02:19.7]} 27. Ke1 {[%clk 0:00:55.2]} 27... Qh1+
{[%clk 0:02:20.2]} 28. Kf2 {[%clk 0:00:56.2]} 28... Qxf3+ {[%clk 0:02:21.1]} 29.
Ke1 {[%clk 0:00:56.9]} 29... Qh1+ {[%clk 0:02:19.2]} 30. Kf2 {[%clk 0:00:57.8]}
30... Qh2+ {[%clk 0:02:08]} 31. Ke1 {[%clk 0:00:58.1]} 31... Qg3+ {[%clk
0:02:01.6]} 32. Rf2 {[%clk 0:00:28.2]} 32... Re8 {[%clk 0:02:02]} 0-1

[Event "*** Titled Tuesday Blitz"]
[Site "Chess.com"]
[Date "2018.06.05"]
[Round "8"]
[White "Doraemon7"]
[Black "vovachesss"]
[Result "0-1"]
[WhiteElo "2411"]
[BlackElo "2406"]
[TimeControl "180+2"]
[EndTime "14:54:06 PDT"]
[Termination "vovachesss won by resignation"]

1. d4 {[%clk 0:03:01.9]} 1... e5 {[%clk 0:02:56.2]} 2. dxe5 {[%clk 0:03:00.1]}
2... Nc6 {[%clk 0:02:57.7]} 3. Nf3 {[%clk 0:02:58.2]} 3... Nge7 {[%clk
0:02:58.3]} 4. e4 {[%clk 0:02:48.1]} 4... Ng6 {[%clk 0:02:58.5]} 5. Be2 {[%clk
0:02:27.8]} 5... Ngxe5 {[%clk 0:02:58.5]} 6. Nxe5 {[%clk 0:02:27.3]} 6... Nxe5
{[%clk 0:03:00.4]} 7. f4 {[%clk 0:02:24.3]} 7... Nc6 {[%clk 0:02:59.1]} 8. Be3
{[%clk 0:02:19.2]} 8... Qh4+ {[%clk 0:02:58.1]} 9. g3 {[%clk 0:02:19.1]} 9...
Qe7 {[%clk 0:02:54]} 10. Nc3 {[%clk 0:02:19.1]} 10... g6 {[%clk 0:02:47.4]} 11.
e5 {[%clk 0:02:03.6]} 11... Bg7 {[%clk 0:02:46.6]} 12. Qd2 {[%clk 0:01:56.1]}
12... O-O {[%clk 0:02:45.8]} 13. Ne4 {[%clk 0:01:50.2]} 13... d6 {[%clk
0:02:43.5]} 14. O-O-O {[%clk 0:01:43.6]} 14... dxe5 {[%clk 0:02:43.7]} 15. Bc5
{[%clk 0:01:44.3]} 15... Qe6 {[%clk 0:02:40.6]} 16. Bxf8 {[%clk 0:01:41.1]}
16... Qxa2 {[%clk 0:02:39.6]} 17. Qd5 {[%clk 0:01:18.6]} 17... Qxd5 {[%clk
0:02:21.8]} 18. Rxd5 {[%clk 0:01:20.4]} 18... Kxf8 {[%clk 0:02:21.8]} 19. fxe5
{[%clk 0:01:12.8]} 19... Bxe5 {[%clk 0:02:19.8]} 20. Bb5 {[%clk 0:01:05.6]}
20... Bf5 {[%clk 0:02:03.8]} 21. Bxc6 {[%clk 0:00:29.2]} 21... Bxe4 {[%clk
0:02:03.3]} 22. Rxe5 {[%clk 0:00:29.2]} 22... Bxc6 {[%clk 0:02:01.5]} 23. Rf1
{[%clk 0:00:29.8]} 23... Rd8 {[%clk 0:02:00.3]} 24. b3 {[%clk 0:00:25.3]} 24...
Rd6 {[%clk 0:01:54.6]} 25. Rf2 {[%clk 0:00:23.3]} 25... f5 {[%clk 0:01:50.6]}
26. g4 {[%clk 0:00:21.5]} 26... Bd7 {[%clk 0:01:51.7]} 27. h4 {[%clk 0:00:20.2]}
27... Kf7 {[%clk 0:01:51.6]} 28. h5 {[%clk 0:00:21]} 28... Kf6 {[%clk
0:01:52.5]} 29. hxg6 {[%clk 0:00:19.7]} 29... Kxe5 {[%clk 0:01:49.8]} 0-1

[Event "*** Titled Tuesday Blitz"]
[Site "Chess.com"]
[Date "2018.06.05"]
[Round "8"]
[White "Patzel09"]
[Black "VNeimer"]
[Result "1-0"]
[WhiteElo "2606"]
[BlackElo "2476"]
[TimeControl "180+2"]
[EndTime "14:54:07 PDT"]
[Termination "Patzel09 won by resignation"]

1. e4 {[%clk 0:03:01.9]} 1... c5 {[%clk 0:03:00.4]} 2. Nc3 {[%clk 0:03:02.5]}
2... Nc6 {[%clk 0:03:00.2]} 3. Bb5 {[%clk 0:03:02.1]} 3... g6 {[%clk 0:02:57.9]}
4. Nf3 {[%clk 0:02:58.3]} 4... Bg7 {[%clk 0:02:54]} 5. O-O {[%clk 0:02:59.2]}
5... e5 {[%clk 0:02:52.4]} 6. d3 {[%clk 0:02:56.3]} 6... Nge7 {[%clk 0:02:51.8]}
7. a3 {[%clk 0:02:52.3]} 7... O-O {[%clk 0:02:49.7]} 8. Rb1 {[%clk 0:02:48]}
8... a6 {[%clk 0:02:42.3]} 9. Bc4 {[%clk 0:02:48.6]} 9... b5 {[%clk 0:02:41]}
10. Ba2 {[%clk 0:02:47.1]} 10... b4 {[%clk 0:02:40]} 11. Nd5 {[%clk 0:02:45]}
11... a5 {[%clk 0:02:34.4]} 12. Bg5 {[%clk 0:02:45.3]} 12... d6 {[%clk
0:02:28.8]} 13. Qd2 {[%clk 0:02:41.8]} 13... Be6 {[%clk 0:02:24.9]} 14. Bc4
{[%clk 0:02:34.3]} 14... Kh8 {[%clk 0:01:56.8]} 15. axb4 {[%clk 0:02:30.6]}
15... axb4 {[%clk 0:01:55.3]} 16. Nxe7 {[%clk 0:02:27.8]} 16... Nxe7 {[%clk
0:01:55.1]} 17. Bxe6 {[%clk 0:02:29.2]} 17... fxe6 {[%clk 0:01:55.4]} 18. c3
{[%clk 0:02:30.1]} 18... Rb8 {[%clk 0:01:50.7]} 19. d4 {[%clk 0:02:28.7]} 19...
bxc3 {[%clk 0:01:44.7]} 20. bxc3 {[%clk 0:02:29.5]} 20... exd4 {[%clk
0:01:45.6]} 21. Rxb8 {[%clk 0:02:24.7]} 21... Qxb8 {[%clk 0:01:46.4]} 22. Bxe7
{[%clk 0:02:25.4]} 22... dxc3 {[%clk 0:01:47.5]} 23. Qxd6 {[%clk 0:02:20.7]}
23... Qxd6 {[%clk 0:01:44.7]} 24. Bxd6 {[%clk 0:02:22.6]} 24... Rd8 {[%clk
0:01:41.2]} 25. Ng5 {[%clk 0:02:20.9]} 25... Kg8 {[%clk 0:01:38.2]} 26. e5
{[%clk 0:02:17.8]} 26... c2 {[%clk 0:01:33.2]} 27. f4 {[%clk 0:02:10.4]} 27...
Bf8 {[%clk 0:00:50.1]} 28. Ne4 {[%clk 0:02:04.5]} 28... Bxd6 {[%clk 0:00:47.2]}
29. exd6 {[%clk 0:02:06.4]} 29... Rb8 {[%clk 0:00:47.5]} 30. d7 {[%clk
0:02:00.1]} 30... Kf7 {[%clk 0:00:48.6]} 31. Rc1 {[%clk 0:01:59.1]} 31... Rb1
{[%clk 0:00:48.6]} 32. d8=Q {[%clk 0:01:54.5]} 32... Rxc1+ {[%clk 0:00:49.2]}
33. Kf2 {[%clk 0:01:53.7]} 33... Rf1+ {[%clk 0:00:50.1]} 34. Kg3 {[%clk
0:01:41]} 34... c1=Q {[%clk 0:00:52]} 35. Ng5+ {[%clk 0:01:38]} 35... Kg7 {[%clk
0:00:51.6]} 36. Qe7+ {[%clk 0:01:39.4]} 1-0